bitfinex-derivatives/quotes_BTCF0:USTF0_20250211
["timestamp","ask_amount","ask_price","bid_price","bid_amount"]
[1739289911809,0.001,96917.0,96916.0,0.21725299]
[1739289912110,0.005,96917.0,96916.0,0.21825299]
[1739289912817,0.004,96917.0,96916.0,0.21825299]
[1739289913004,0.005,96917.0,96916.0,0.21825299]
[1739289913310,0.001,96917.0,96916.0,0.21725299]
[1739289913498,0.005,96917.0,96916.0,0.21825299]
[1739289913702,0.00495483,96917.0,96916.0,0.21825299]
[1739289914116,0.00015477,96921.0,96920.0,0.2063456]
[1739289915910,0.00015477,96921.0,96920.0,0.4232456]
[1739289916211,0.00015477,96921.0,96920.0,0.4242456]
[1739289916404,0.00415477,96921.0,96920.0,0.4242456]
[1739289917100,0.00015477,96921.0,96920.0,0.4232456]
[1739289917306,0.00515477,96921.0,96920.0,0.4232456]
[1739289917507,0.00615477,96921.0,96920.0,0.4232456]
[1739289918409,0.00515477,96921.0,96920.0,0.4232456]
[1739289920718,0.00615477,96921.0,96920.0,0.4232456]
[1739289921013,0.36595477,96921.0,96920.0,0.4232456]
[1739289921316,0.36695477,96921.0,96920.0,0.4232456]
[1739289921509,0.36595477,96921.0,96920.0,0.4242456]
[1739289923110,0.36595477,96921.0,96920.0,0.2179]
[1739289923311,0.57229827,96921.0,96920.0,0.001]
[1739289924110,0.56829827,96921.0,96916.0,0.2063527]
[1739289924319,0.57229827,96921.0,96920.0,0.001]
[1739289924527,0.57229827,96921.0,96920.0,0.002]
[1739289930117,0.62247972,96921.0,96920.0,0.002]
[1739289935421,0.41613622,96921.0,96920.0,0.002]
[1739289935617,0.48737622,96921.0,96920.0,0.002]
[1739289945823,0.12657622,96921.0,96920.0,0.002]
[1739289946032,0.84817622,96921.0,96920.0,0.002]
[1739289947523,1.05452002,96921.0,96920.0,0.002]
[1739289949724,1.05452002,96921.0,96909.0,0.2063686]
[1739289950026,0.3608,96910.0,96909.0,0.2063686]
[1739289950230,0.3608,96910.0,96906.0,0.2063752]
[1739289950431,0.3608,96910.0,96908.0,0.2063707]
[1739289950830,0.3608,96910.0,96909.0,0.001]
[1739289951229,0.3618,96910.0,96909.0,0.001]
[1739289952734,0.3668,96910.0,96908.0,0.2073707]
[1739289953237,0.3688,96910.0,96908.0,0.001]
[1739289953436,0.3688,96910.0,96900.0,0.1]
[1739289953437,0.2063755,96907.0,96900.0,0.1]
[1739289953738,0.2064269,96882.0,96873.0,0.00132]
[1739289953933,0.07124,96882.0,96881.0,0.21831098]
[1739289954330,0.07124,96882.0,96881.0,0.42473998]
[1739289954531,0.07024,96882.0,96881.0,0.42473998]
[1739289954927,0.3608,96886.0,96885.0,0.2064204]
[1739289955336,0.00015477,96891.0,96890.0,0.2064097]
[1739289955729,0.07139477,96891.0,96890.0,0.2064097]
[1739289957339,0.07339477,96891.0,96890.0,0.2064097]
[1739289957539,0.08439477,96891.0,96890.0,0.2074097]
[1739289958642,0.08439477,96891.0,96890.0,0.001]
[1739289960037,0.09504438,96891.0,96890.0,0.001]
[1739289960237,0.08439477,96891.0,96890.0,0.001]
[1739289963838,0.11439477,96891.0,96886.0,0.2064171]
[1739289964237,0.11439477,96891.0,96876.0,0.2064394]
[1739289964238,0.32080377,96891.0,96876.0,0.2064394]
[1739289964444,0.0332,96890.0,96871.0,0.0311]
[1739289964750,0.0322,96890.0,96871.0,0.0311]
[1739289964939,0.0322,96890.0,96880.0,0.12236109]
[1739289965247,0.0322,96890.0,96880.0,0.32879009]
[1739289965939,0.0322,96890.0,96880.0,0.206429]
[1739289966535,0.0322,96890.0,96882.0,0.2064261]
[1739289967148,0.0472,96890.0,96882.0,0.2064261]
[1739289967338,0.0492,96890.0,96882.0,0.2064261]
[1739289967737,0.0342,96890.0,96882.0,0.2064261]
[1739289968048,0.0442,96890.0,96882.0,0.2074261]
[1739289968841,0.012,96890.0,96882.0,0.001]
[1739289969044,0.012,96890.0,96889.0,0.2064116]
[1739289969247,0.07324,96890.0,96889.0,0.2064116]
[1739289969431,0.08824,96890.0,96889.0,0.2064116]
[1739289969836,0.017,96890.0,96889.0,0.2064116]
[1739289970140,0.08624,96890.0,96889.0,0.2064116]
[1739289970351,0.08824,96890.0,96889.0,0.2064116]
[1739289970845,0.07724,96890.0,96889.0,0.2064116]
[1739289971044,0.07724,96890.0,96889.0,0.2074116]
[1739289972149,0.006,96890.0,96889.0,0.2074116]
[1739289972339,0.07724,96890.0,96889.0,0.2074116]
[1739289973248,0.07524,96890.0,96889.0,0.2064116]
[1739289973444,0.08824,96890.0,96889.0,0.2084116]
[1739289973948,0.08824,96890.0,96889.0,0.2074116]
[1739289974139,0.07324,96890.0,96889.0,0.2064116]
[1739289974342,0.08524,96890.0,96889.0,0.2074116]
[1739289974647,0.08524,96890.0,96889.0,0.2084116]
[1739289975148,0.014,96890.0,96889.0,0.2084116]
[1739289975942,0.015,96890.0,96889.0,0.2084116]
[1739289976939,0.015,96890.0,96889.0,0.2074116]
[1739289977140,0.002,96890.0,96889.0,0.2064116]
[1739289977353,0.012,96890.0,96889.0,0.2074116]
[1739289977647,0.014,96890.0,96889.0,0.2084116]
[1739289978238,0.014,96890.0,96889.0,0.2074116]
[1739289979155,0.01,96890.0,96889.0,0.2074116]
[1739289979549,0.01,96890.0,96889.0,0.4243116]
[1739289979849,0.00015477,96891.0,96890.0,0.2064096]
[1739289980044,0.00015477,96891.0,96890.0,0.2365096]
[1739289981047,0.00015477,96891.0,96889.0,0.4243116]
[1739289981351,0.00015477,96891.0,96889.0,0.2074116]
[1739289981352,0.00215477,96891.0,96889.0,0.2074116]
[1739289981547,0.00215477,96891.0,96890.0,0.2064096]
[1739289982352,0.00815477,96891.0,96890.0,0.2074096]
[1739289983755,0.00615477,96891.0,96890.0,0.2074096]
[1739289984054,0.00615477,96891.0,96890.0,0.002]
[1739289984055,0.00815477,96891.0,96890.0,0.002]
[1739289984253,0.2064122,96889.0,96882.0,0.2064249]
[1739289984443,0.3608,96886.0,96882.0,0.2064249]
[1739289984756,0.3608,96886.0,96884.0,0.2064214]
[1739289985850,0.08739477,96891.0,96874.0,0.01055387]
[1739289986043,0.08739477,96891.0,96889.0,0.2064111]
[1739289986554,0.08539477,96891.0,96889.0,0.2064111]
[1739289986754,0.20316702,96891.0,96890.0,0.002]
[1739289986957,0.20316702,96891.0,96890.0,0.0647]
[1739289987254,0.20316702,96891.0,96890.0,0.0637]
[1739289987451,0.18816702,96891.0,96890.0,0.0627]
[1739289987642,0.19616702,96891.0,96890.0,0.0627]
[1739289987842,0.19716702,96891.0,96890.0,0.0637]
[1739289988241,0.19716702,96891.0,96890.0,0.0941]
[1739289989149,0.18916702,96891.0,96890.0,0.0941]
[1739289989354,0.20016702,96891.0,96890.0,0.0951]
[1739289990154,0.19616702,96891.0,96890.0,0.0941]
[1739289990350,0.01415477,96891.0,96890.0,0.0951]
[1739289991548,0.01415477,96891.0,96890.0,0.312]
[1739289991962,0.00315477,96891.0,96890.0,0.311]
[1739289992156,0.01415477,96891.0,96890.0,0.2816]
[1739289992359,0.01415477,96891.0,96890.0,0.29208708]
[1739289992756,0.00315477,96891.0,96890.0,0.29108708]
[1739289992953,0.01415477,96891.0,96890.0,0.29208708]
[1739289993154,0.01115477,96891.0,96890.0,0.29108708]
[1739289993348,0.01415477,96891.0,96890.0,0.29208708]
[1739289993760,0.01115477,96891.0,96890.0,0.29108708]
[1739289994066,0.01415477,96891.0,96890.0,0.49849668]
[1739289994361,0.01115477,96891.0,96890.0,0.49749668]
[1739289994559,0.01415477,96891.0,96890.0,0.49849668]
[1739289995260,0.00315477,96891.0,96890.0,0.49749668]
[1739289995468,0.01415477,96891.0,96890.0,0.49849668]
[1739289995672,0.0712,96894.0,96890.0,0.29208708]
[1739289996357,0.0712,96894.0,96890.0,0.29108708]
[1739289996664,0.003,96891.0,96890.0,0.49749668]
[1739289996868,0.003,96891.0,96890.0,0.85929668]
[1739289997061,0.0712,96898.0,96893.0,0.2064032]
[1739289997255,0.0712,96898.0,96890.0,0.65420708]
[1739289997256,0.003,96894.0,96890.0,0.65420708]
[1739289997460,0.003,96894.0,96893.0,0.2064032]
[1739289997963,0.0712,96898.0,96897.0,0.2063946]
[1739289999366,0.15413812,96900.0,96890.0,0.29108708]
[1739289999566,0.15413812,96900.0,96899.0,0.2063904]
[1739290001261,0.15413812,96900.0,96899.0,0.2073904]
[1739290002776,0.15413812,96900.0,96899.0,0.2083904]
[1739290003076,0.36095477,96902.0,96901.0,0.2063861]
[1739290004175,0.36095477,96902.0,96901.0,0.2073861]
[1739290004380,0.36095477,96902.0,96901.0,0.2083861]
[1739290006776,0.36095477,96902.0,96901.0,0.2073861]
[1739290007073,0.36095477,96902.0,96901.0,0.2083861]
[1739290007284,0.41113816,96902.0,96901.0,0.2083861]
[1739290009473,0.41113816,96902.0,96901.0,0.2073861]
[1739290009670,0.41113816,96902.0,96901.0,0.2083861]
[1739290009975,0.05033816,96902.0,96901.0,0.2083861]
[1739290013178,0.05033816,96902.0,96901.0,0.2073861]
[1739290013386,0.05033816,96902.0,96901.0,0.2083861]
[1739290014680,0.05033816,96902.0,96901.0,0.2073861]
[1739290014985,0.05033816,96902.0,96901.0,0.2083861]
[1739290016375,0.05033816,96902.0,96901.0,0.2073861]
[1739290016886,0.05033816,96902.0,96901.0,0.2083861]
[1739290017584,0.05033816,96902.0,96901.0,0.002]
[1739290017987,0.05033816,96902.0,96901.0,0.001]
[1739290018191,0.05033816,96902.0,96901.0,0.002]
[1739290019385,0.41113816,96902.0,96890.0,0.2169]
[1739290019586,0.3608,96891.0,96890.0,0.2169]
[1739290020387,0.3608,96891.0,96890.0,0.4233096]
[1739290021095,0.3608,96891.0,96890.0,0.4253096]
[1739290022689,0.3608,96891.0,96890.0,0.4243096]
[1739290022884,0.3608,96891.0,96890.0,0.4253096]
[1739290023088,0.3608,96891.0,96890.0,0.4243096]
[1739290023794,0.3608,96891.0,96890.0,0.4233096]
[1739290023991,0.01076938,96894.0,96890.0,0.2169]
[1739290024187,0.3608,96897.0,96890.0,0.2169]
[1739290024392,0.3608,96897.0,96894.0,0.2063998]
[1739290024594,0.18516044,96896.0,96894.0,0.2063998]
[1739290025493,0.18516044,96896.0,96895.0,0.2063989]
[1739290026695,0.18516044,96896.0,96895.0,0.2073989]
[1739290027394,0.25636044,96896.0,96895.0,0.2073989]
[1739290027591,0.18516044,96896.0,96895.0,0.2073989]
[1739290027797,0.18516044,96896.0,96895.0,0.2083989]
[1739290028101,0.05018627,96896.0,96895.0,0.2083989]
[1739290031107,0.51501633,96897.0,96896.0,0.2063968]
[1739290031702,0.58621633,96897.0,96896.0,0.2063968]
[1739290033504,0.58621633,96897.0,96896.0,0.2073968]
[1739290033505,0.48218578,96897.0,96896.0,0.2073968]
[1739290034207,0.48218578,96897.0,96896.0,0.2083968]
[1739290035110,0.48218578,96897.0,96896.0,0.002]
[1739290035511,0.51278578,96897.0,96896.0,0.002]
[1739290036208,0.52329754,96897.0,96896.0,0.002]
[1739290038004,0.84893576,96897.0,96896.0,0.002]
[1739290039406,0.64254106,96897.0,96889.0,0.2064107]
[1739290039704,0.2371984,96896.0,96889.0,0.2064107]
[1739290040714,0.2063994,96895.0,96889.0,0.2064107]
[1739290042810,0.2063994,96895.0,96889.0,0.2074107]
[1739290043211,0.25658518,96895.0,96889.0,0.2074107]
[1739290043811,0.25758518,96895.0,96889.0,0.2084107]
[1739290044313,0.05118578,96895.0,96889.0,0.002]
[1739290044617,0.05118578,96895.0,96894.0,0.206401]
[1739290045615,0.12238578,96895.0,96894.0,0.206401]
[1739290045914,0.12238578,96895.0,96894.0,0.208401]
[1739290045915,0.12138578,96895.0,96894.0,0.208401]
[1739290046914,0.32778468,96895.0,96894.0,0.002]
[1739290047121,0.2064056,96892.0,96884.0,0.2064219]
[1739290047418,0.3608,96886.0,96884.0,0.2064219]
[1739290048122,0.3608,96886.0,96885.0,0.2064202]
[1739290049117,0.432,96886.0,96885.0,0.2064202]
[1739290049718,0.432,96886.0,96885.0,0.2074202]
[1739290049921,0.433,96886.0,96885.0,0.2084202]
[1739290051613,0.58725119,96886.0,96885.0,0.2084202]
[1739290053316,0.51605119,96886.0,96885.0,0.2084202]
[1739290053516,0.58725119,96886.0,96885.0,0.2084202]
[1739290055822,0.48319027,96886.0,96885.0,0.2084202]
[1739290059922,0.433,96886.0,96885.0,0.2084202]
[1739290060126,0.001,96886.0,96885.0,0.2084202]
[1739290060318,0.0722,96886.0,96885.0,0.2084202]
[1739290060521,0.001,96886.0,96885.0,0.2084202]
[1739290060829,0.0722,96886.0,96885.0,0.2084202]
[1739290061632,0.0722,96886.0,96885.0,0.21917624]
[1739290062328,0.0722,96886.0,96885.0,0.21817624]
[1739290063114,0.0722,96886.0,96885.0,0.21717624]
[1739290063931,0.001,96886.0,96885.0,0.21717624]
[1739290064117,0.22542573,96888.0,96885.0,0.01075604]
[1739290064317,0.001,96886.0,96885.0,0.2064202]
[1739290064918,0.3608,96887.0,96885.0,0.2064202]
[1739290065126,0.001,96886.0,96885.0,0.2064202]
[1739290067137,0.05119,96886.0,96885.0,0.2074202]
[1739290071427,0.05119,96886.0,96885.0,0.21788165]
[1739290071739,0.05119,96886.0,96885.0,0.21688165]
[1739290073829,0.001,96886.0,96885.0,0.21688165]
[1739290074634,0.3608,96887.0,96885.0,0.01046145]
[1739290074836,0.3608,96887.0,96886.0,0.2064181]
[1739290075636,0.3618,96887.0,96886.0,0.2064181]
[1739290077034,0.15426593,96889.0,96888.0,0.2064138]
[1739290078238,0.3608,96897.0,96883.0,0.04180908]
[1739290078441,0.3608,96897.0,96896.0,0.2063968]
[1739290079833,0.3618,96897.0,96896.0,0.2073968]
[1739290081240,0.3618,96897.0,96896.0,0.2083968]
[1739290081644,0.3608,96897.0,96896.0,0.21910486]
[1739290082141,0.51495046,96897.0,96896.0,0.21910486]
[1739290082538,0.51495046,96897.0,96896.0,0.21810486]
[1739290082741,0.51495046,96897.0,96896.0,0.21910486]
[1739290083135,0.51495046,96897.0,96896.0,0.21810486]
[1739290083338,0.51495046,96897.0,96896.0,0.21910486]
[1739290083944,0.51495046,96897.0,96896.0,0.2083968]
[1739290084344,0.51495046,96897.0,96896.0,0.2073968]
[1739290084537,0.51495046,96897.0,96896.0,0.2083968]
[1739290085135,0.51495046,96897.0,96896.0,0.2073968]
[1739290085342,0.51495046,96897.0,96896.0,0.2083968]
[1739290085934,0.51495046,96897.0,96896.0,0.2073968]
[1739290086248,0.51495046,96897.0,96896.0,0.2083968]
[1739290086446,0.3608,96897.0,96896.0,0.2083968]
[1739290089051,0.3608,96897.0,96896.0,0.2073968]
[1739290089242,0.3608,96897.0,96896.0,0.2083968]
[1739290090150,0.41098752,96897.0,96896.0,0.2083968]
[1739290090446,0.41098752,96897.0,96896.0,0.002]
[1739290090851,0.41098752,96897.0,96896.0,0.001]
[1739290091147,0.41098752,96897.0,96896.0,0.002]
[1739290091538,0.41098752,96897.0,96896.0,0.2083968]
[1739290091743,0.41098752,96897.0,96896.0,0.2073968]
[1739290091943,0.41098752,96897.0,96896.0,0.2083968]
[1739290092341,0.61738222,96897.0,96896.0,0.002]
[1739290092642,0.2064022,96894.0,96879.0,0.36216]
[1739290092849,0.3608,96886.0,96885.0,0.2064201]
[1739290094443,0.3618,96886.0,96885.0,0.2064201]
[1739290095845,0.3628,96886.0,96885.0,0.2074201]
[1739290098750,0.51694063,96886.0,96885.0,0.2074201]
[1739290098945,0.72335873,96886.0,96885.0,0.2074201]
[1739290099645,0.79451873,96886.0,96885.0,0.2074201]
[1739290101650,0.80490158,96886.0,96885.0,0.2074201]
[1739290102956,0.79451873,96886.0,96885.0,0.2074201]
[1739290103152,0.69056791,96886.0,96885.0,0.2074201]
[1739290103552,0.48414981,96886.0,96885.0,0.2074201]
[1739290105350,0.69056791,96886.0,96885.0,0.2074201]
[1739290105752,0.48414981,96886.0,96885.0,0.2074201]
[1739290107259,0.43396,96886.0,96885.0,0.2074201]
[1739290108558,0.43396,96886.0,96885.0,0.001]
[1739290109758,0.6403781,96886.0,96885.0,0.001]
[1739290109960,0.6403781,96886.0,96879.0,0.3608]
[1739290109961,0.2064205,96885.0,96879.0,0.3608]
[1739290110162,0.032,96885.0,96880.0,0.2064305]
[1739290111261,0.032,96885.0,96879.0,0.3608]
[1739290111262,0.032,96885.0,96881.0,0.2064266]
[1739290112061,0.033,96885.0,96881.0,0.2064266]
[1739290112657,0.2394209,96885.0,96881.0,0.2064266]
[1739290113263,0.2414209,96885.0,96881.0,0.2064266]
[1739290114162,0.2424209,96885.0,96881.0,0.2064266]
[1739290114761,0.15406427,96882.0,96881.0,0.2064266]
[1739290116075,0.15506427,96882.0,96881.0,0.2064266]
[1739290116371,0.15706427,96882.0,96881.0,0.2064266]
[1739290118480,0.003,96882.0,96881.0,0.2064266]
[1739290119582,0.18505984,96893.0,96892.0,0.2064053]
[1739290120674,0.18705984,96893.0,96892.0,0.2074053]
[1739290121372,0.002,96893.0,96892.0,0.2074053]
[1739290121982,0.002,96893.0,96892.0,0.2084053]
[1739290124873,0.05218554,96893.0,96892.0,0.2084053]
[1739290125278,0.05218554,96893.0,96892.0,0.4253053]
[1739290127981,0.002,96893.0,96892.0,0.4253053]
[1739290132192,0.2063957,96897.0,96892.0,0.2179]
[1739290132395,0.2063957,96897.0,96896.0,0.2063968]
[1739290133595,0.2063957,96897.0,96896.0,0.2073968]
[1739290134186,0.21708483,96897.0,96896.0,0.2073968]
[1739290134386,0.01068913,96897.0,96896.0,0.2073968]
[1739290134582,0.3908,96898.0,96896.0,0.2073968]
[1739290135290,0.3908,96898.0,96896.0,0.2063968]
[1739290135492,0.3908,96898.0,96897.0,0.2063947]
[1739290136291,0.4015091,96898.0,96897.0,0.2063947]
[1739290136489,0.4015091,96898.0,96897.0,0.2073947]
[1739290136992,0.3608,96898.0,96897.0,0.2073947]
[1739290137297,0.43192,96898.0,96897.0,0.2073947]
[1739290138000,0.43192,96898.0,96897.0,0.2083947]
[1739290138902,0.48210793,96898.0,96897.0,0.2083947]
[1739290139500,0.48210793,96898.0,96897.0,0.2073947]
[1739290139693,0.48210793,96898.0,96897.0,0.2083947]
[1739290140397,0.48210793,96898.0,96897.0,0.2073947]
[1739290140602,0.48210793,96898.0,96897.0,0.2083947]
[1739290141000,0.10083474,96904.0,96897.0,0.002]
[1739290141196,0.21518339,96920.0,96919.0,0.2063478]
[1739290141398,3e-08,96923.0,96922.0,0.2063414]
[1739290141595,3e-08,96923.0,96922.0,0.7893414]
[1739290141796,0.3608,96941.0,96935.0,0.2063138]
[1739290142095,0.3608,96941.0,96940.0,0.2063031]
[1739290143501,0.30740484,96949.0,96948.0,0.2062861]
[1739290143705,0.07112,96957.0,96948.0,0.3608]
[1739290143910,0.33814532,96962.0,96954.0,0.2062733]
[1739290144098,0.33814532,96962.0,96961.0,0.2062584]
[1739290145099,0.33814532,96962.0,96961.0,0.2393584]
[1739290145693,0.33814532,96962.0,96961.0,0.2062584]
[1739290146103,0.33814532,96962.0,96961.0,0.2072584]
[1739290146902,0.2062415,96969.0,96963.0,0.2062537]
[1739290147500,0.2363415,96969.0,96963.0,0.2062537]
[1739290148099,0.0301,96969.0,96961.0,0.002]
[1739290148301,0.2062482,96966.0,96961.0,0.001]
[1739290148608,0.2062482,96966.0,96963.0,0.001]
[1739290148809,0.2062482,96966.0,96963.0,0.002]
[1739290149800,0.0301,96969.0,96963.0,0.002]
[1739290150002,0.0301,96969.0,96963.0,0.001]
[1739290150208,0.0301,96969.0,96963.0,0.2062536]
[1739290150911,0.0301,96969.0,96963.0,0.2072536]
[1739290151799,0.2363435,96969.0,96963.0,0.002]
[1739290152312,0.2062444,96968.0,96963.0,0.002]
[1739290156809,0.2062457,96967.0,96963.0,0.002]
[1739290157916,0.2062457,96967.0,96963.0,0.001]
[1739290158111,0.2062457,96967.0,96963.0,0.002]
[1739290158910,0.0301,96969.0,96963.0,0.002]
[1739290158911,0.5670521,96964.0,96963.0,0.002]
[1739290159112,0.2062755,96953.0,96952.0,0.00015477]
[1739290159806,0.2392755,96953.0,96952.0,0.00015477]
[1739290160616,0.24964426,96953.0,96952.0,0.00115477]
[1739290161316,0.2062913,96946.0,96940.0,0.2169]
[1739290161507,0.3085727,96945.0,96940.0,0.2169]
[1739290161909,0.3085727,96945.0,96931.0,0.2169]
[1739290161910,0.10228,96945.0,96931.0,0.2169]
[1739290162109,0.2063106,96937.0,96931.0,0.4232216]
[1739290162813,0.0328,96936.0,96932.0,0.20632]
[1739290164319,0.0328,96936.0,96935.0,0.2063138]
[1739290164521,0.0358,96936.0,96935.0,0.2063138]
[1739290165216,0.0368,96936.0,96935.0,0.2063138]
[1739290165822,0.0358,96936.0,96935.0,0.2063138]
[1739290166021,0.0368,96936.0,96935.0,0.2063138]
[1739290166525,0.0368,96936.0,96935.0,0.2073138]
[1739290168112,0.10788,96936.0,96935.0,0.2073138]
[1739290168918,0.10788,96936.0,96935.0,0.2083138]
[1739290170123,0.004,96936.0,96935.0,0.2083138]
[1739290170718,0.0314,96956.0,96935.0,0.2083138]
[1739290170719,0.12236109,96980.0,96935.0,0.002]
[1739290171023,0.07108,96957.0,96956.0,0.2062691]
[1739290172639,0.07208,96957.0,96956.0,0.001]
[1739290172940,0.07208,96957.0,96956.0,0.2082691]
[1739290178540,0.07208,96957.0,96956.0,0.4251691]
[1739290179741,0.001,96957.0,96956.0,0.4251691]
[1739290181644,0.00015477,96966.0,96965.0,0.2062499]
[1739290181841,0.15368363,96976.0,96975.0,0.2062287]
[1739290182744,0.15368363,96976.0,96966.0,0.2062476]
[1739290183350,0.15368363,96976.0,96968.0,0.206243]
[1739290183548,0.15368363,96976.0,96975.0,0.001]
[1739290183746,0.15368363,96976.0,96975.0,0.3618]
[1739290184146,0.0315,96983.0,96975.0,0.3618]
[1739290184346,0.07604,96982.0,96975.0,0.3618]
[1739290184548,0.0315,96983.0,96975.0,0.3618]
[1739290184750,0.07608,96982.0,96981.0,0.2062159]
[1739290185049,0.07608,96982.0,96981.0,0.21744371]
[1739290186347,0.07608,96982.0,96981.0,0.2072159]
[1739290186741,0.07608,96982.0,96981.0,0.001]
[1739290187351,0.0762,96982.0,96981.0,0.001]
[1739290187546,0.15383832,96985.0,96981.0,0.001]
[1739290187943,0.00015469,96985.0,96984.0,0.2062095]
[1739290188346,0.00015469,96985.0,96984.0,0.21789577]
[1739290189053,0.00015469,96985.0,96984.0,0.21889577]
[1739290190853,0.00015469,96985.0,96984.0,0.21891054]
[1739290191056,0.00015469,96985.0,96984.0,0.21991054]
[1739290191550,0.00015469,96985.0,96984.0,0.2082095]
[1739290192456,0.010657,96985.0,96984.0,0.2082095]
[1739290192654,0.00015469,96985.0,96984.0,0.2082095]
[1739290193354,0.00015469,96985.0,96984.0,0.002]
[1739290193554,0.00015469,96985.0,96955.0,0.4136875]
[1739290193555,0.00015469,96985.0,96975.0,0.2062283]
[1739290193753,0.03095469,96985.0,96975.0,0.2062283]
[1739290193947,0.15331578,96985.0,96975.0,0.2062283]
[1739290195257,0.3608,96977.0,96975.0,0.001]
[1739290195452,0.07748,96976.0,96975.0,0.001]
[1739290195658,0.10978,96976.0,96975.0,0.001]
[1739290195848,0.10978,96976.0,96975.0,0.002]
[1739290196852,0.10978,96976.0,96975.0,0.001]
[1739290197058,0.04116135,96985.0,96983.0,0.2062105]
[1739290197254,0.03095469,96985.0,96984.0,0.37241727]
[1739290197455,0.00015469,96985.0,96984.0,0.39242637]
[1739290197655,0.08419469,96985.0,96984.0,0.39242637]
[1739290199562,0.08419469,96985.0,96984.0,0.39342637]
[1739290200348,0.08419469,96985.0,96984.0,0.39442637]
[1739290200752,0.08419469,96985.0,96984.0,0.42071498]
[1739290201355,0.0641,96999.0,96984.0,0.42071498]
[1739290201561,0.3608,97004.0,96993.0,0.3608]
[1739290201766,0.0838,96999.0,96994.0,0.03271405]
[1739290201952,0.0838,96999.0,96995.0,0.03271405]
[1739290202161,0.0838,96999.0,96996.0,0.03271405]
[1739290202463,0.0838,96999.0,96997.0,0.03271405]
[1739290202658,0.0838,96999.0,96998.0,0.03271405]
[1739290203359,0.1103824,97000.0,96999.0,0.2061776]
[1739290203360,0.1,97000.0,96999.0,0.2061776]
[1739290203560,0.18412,97000.0,96999.0,0.23889165]
[1739290203862,0.18408,97000.0,96999.0,0.23889165]
[1739290204254,0.184,97000.0,96999.0,0.26427408]
[1739290204459,0.184,97000.0,96999.0,0.26406851]
[1739290204767,0.184,97000.0,96999.0,0.26406996]
[1739290204967,0.184,97000.0,96999.0,0.26506996]
[1739290205367,0.184,97000.0,96999.0,0.23989165]
[1739290205568,0.184,97000.0,96999.0,0.24089165]
[1739290206160,0.184,97000.0,96999.0,0.03471405]
[1739290206666,0.184,97000.0,96999.0,0.01458206]
[1739290213872,0.18304,97000.0,96999.0,0.03363716]
[1739290214971,0.18304,97000.0,96999.0,0.0333112]
[1739290216170,0.18316,97000.0,96999.0,0.03307282]
[1739290216364,0.18316,97000.0,96999.0,0.06507282]
[1739290216966,0.1832,97000.0,96999.0,0.06507282]
[1739290217177,0.1832,97000.0,96999.0,0.03307282]
[1739290218772,0.1832,97000.0,96999.0,0.01395083]
[1739290218971,0.1832,97000.0,96999.0,0.03324636]
[1739290220264,0.1832,97000.0,96999.0,0.03346639]
[1739290221173,0.1832,97000.0,96999.0,0.0141022]
[1739290222361,0.1832,97000.0,96999.0,0.01396301]
[1739290222675,0.1832,97000.0,96999.0,0.03349726]
[1739290223168,0.1,97000.0,96999.0,0.03349726]
[1739290223371,0.00015469,97007.0,97006.0,0.2061627]
[1739290223575,0.00015469,97007.0,97006.0,0.23765996]
[1739290224275,0.00015469,97007.0,97006.0,0.62292632]
[1739290224477,0.00015469,97007.0,97006.0,0.59876105]
[1739290224777,0.00015469,97007.0,97006.0,0.62432655]
[1739290224975,0.00015469,97007.0,97006.0,0.6244592]
[1739290225178,0.08275469,97007.0,97006.0,0.6244592]
[1739290225475,0.08275469,97007.0,97006.0,0.64057297]
[1739290225973,0.08275469,97007.0,97006.0,0.64157297]
[1739290226576,0.00154658,97022.0,97008.0,0.0515393]
[1739290226775,0.00154658,97022.0,97021.0,0.2061309]
[1739290226971,0.08390658,97022.0,97021.0,0.23806304]
[1739290228382,0.00154658,97022.0,97021.0,0.23806304]
[1739290228875,0.08382658,97022.0,97021.0,0.23806304]
[1739290229075,0.08382658,97022.0,97021.0,0.23906304]
[1739290229472,0.08382658,97022.0,97021.0,0.24006304]
[1739290230471,0.08350658,97022.0,97021.0,0.24006304]
[1739290232278,0.01063465,97027.0,97021.0,0.24006304]
[1739290232279,0.0001546,97031.0,97030.0,0.2061118]
[1739290232485,0.0820746,97031.0,97030.0,0.21839313]
[1739290232785,0.0820746,97031.0,97030.0,0.23813148]
[1739290233285,0.0819146,97031.0,97030.0,0.23830862]
[1739290233476,0.0818746,97031.0,97030.0,0.23830862]
[1739290234082,0.0818746,97031.0,97030.0,0.23930862]
[1739290234282,0.0001546,97031.0,97030.0,0.23930862]
[1739290234475,0.0817946,97031.0,97030.0,0.23930862]
[1739290234683,0.0001546,97031.0,97030.0,0.24038556]
[1739290234886,0.0818346,97031.0,97030.0,0.24038556]
[1739290235281,0.0001546,97031.0,97030.0,0.24038556]
[1739290235499,1e-08,97031.0,97030.0,0.24038556]
[1739290237691,1e-08,97031.0,97030.0,0.28102584]
[1739290238298,1e-08,97031.0,97030.0,0.30680104]
[1739290240796,1e-08,97031.0,97030.0,0.55504813]
[1739290240989,1e-08,97031.0,97030.0,0.92114813]
[1739290241188,1e-08,97031.0,97030.0,0.92120218]
[1739290241396,0.08148,97046.0,97030.0,0.71509038]
[1739290241598,0.08148,97046.0,97045.0,0.2060799]
[1739290241787,0.08148,97046.0,97045.0,0.2386527]
[1739290242391,0.08124,97050.0,97049.0,0.2060714]
[1739290242697,0.0812,97050.0,97049.0,0.5994442]
[1739290243291,0.0812,97050.0,97049.0,0.21859913]
[1739290244700,0.0812,97050.0,97049.0,0.21959913]
[1739290244994,0.0812,97050.0,97049.0,0.22053251]
[1739290245192,0.00154632,97051.0,97049.0,0.22053251]
[1739290245390,0.08088,97050.0,97049.0,0.2080714]
[1739290245590,0.08088,97050.0,97049.0,0.22053169]
[1739290246592,0.00154632,97051.0,97049.0,0.22053169]
[1739290246794,0.00154632,97051.0,97050.0,0.01246029]
[1739290246995,0.08068,97056.0,97055.0,0.2060586]
[1739290247198,0.0332,97060.0,97055.0,0.03200823]
[1739290247392,0.0332,97060.0,97059.0,0.2060501]
[1739290247594,0.1138,97060.0,97059.0,0.21851039]
[1739290247794,0.08056,97061.0,97060.0,0.206048]
[1739290247993,0.08056,97061.0,97060.0,0.21850829]
[1739290248294,0.0321,97076.0,97075.0,0.2060162]
[1739290248497,0.11258,97076.0,97075.0,0.2060162]
[1739290249398,0.11258,97076.0,97075.0,0.001]
[1739290251299,0.11258,97076.0,97072.0,0.206021]